[Event "1st Serbian League 2022"]
[Site "Vrnjacka Banja"]
[Date "2022.09.20"]
[Round "1.20"]
[White "Bogosavljevic, Boban"]
[Black "Puranik, Abhimanyu"]
[Result "0-1"]
[ECO "A39"]
[WhiteElo "2533"]
[BlackElo "2603"]
[Annotator "TA"]
[PlyCount "96"]
[EventDate "2022.09.20"]
[EventType "team-tourn"]
[EventCountry "SRB"]
[SourceTitle "playchess.com"]
[Source "ChessBase"]
[SourceQuality "1"]
[TimeControl "40/5400+30:1800+30"]

{[%evp 16,96,28,33,33,28,33,27,32,32,39,29,26,13,26,9,21,17,14,8,20,-4,0,-8,0,-2,-5,0,-17,-44,-47,-72,-46,-53,-45,-127,-74,-64,-55,-87,-76,-94,-97,-104,-91,-117,-105,-138,-135,-129,-77,-85,-84,-89,-95,-95,-86,-143,-125,-132,-118,-129,-133,-274,-272,-302,-287,-317,-274,-299,-271,-333,-327,-377,-378,-353,-368,-350,-350,-427,-427,-402,-376]} 1. Nf3 {[%emt 0:00:04]} c5 {[%emt 0:00:25]} 2. c4 {[%emt 0:00:13]} Nf6 {[%emt 0:00:58]} 3. g3 {[%emt 0:00:24]} Nc6 {[%emt 0:01:32]} 4. Bg2 {[%emt 0:00:15]} g6 {[%emt 0:01:34]} 5. O-O {[%emt 0:01:08]} Bg7 {[%emt 0:00:40]} 6. d4 {[%emt 0:00:15]} cxd4 {[%emt 0:00:02]} 7. Nxd4 {[%emt 0:00:07]} O-O {[%emt 0:00:04]} 8. Nc3 {[%emt 0:00:10]} Qa5 {[%emt 0:00:13]} 9. e3 {[%emt 0:00:06] BESTDEEP now scores much better than the old 9.Nb3.} d6 {[%emt 0:00:46] BESTDEEP. A39: Symmetrical English vs ...g6: 4 Bg2 Bg7 5 Nf3 Nf6 6 0-0 0-0 7 d4.} 10. Bd2 {[%emt 0:00:05] BESTDEEP} Qb6 {[%emt 0:01:08] BESTDEEP} 11. Nxc6 {[%emt 0:02:25] CPLX 2.6 6 (Nc3-a4) (=2)} bxc6 {[%emt 0:00:10] RECAPT. White has an edge.} 12. b3 {[%emt 0:00:04] CPLX 2.2 0 (Nc3-a4) (=2)} Bb7 {[%emt 0:15:38] [#] CPLX 2.1 7 (Nf6-d7) (=2)} 13. Rc1 $146 {[%emt 0:01:57] CPLX 2.1 10 (Nc3-a4) (=3)} ({Predecessor:} 13. Qe2 Nd7 14. Na4 Qc7 15. Bc3 Bxc3 16. Nxc3 a5 17. a3 Rfb8 18. b4 axb4 19. axb4 {½-½ (31) Roiz,M (2605)-Dominguez Perez,L (2752) Novi Sad 2016}) 13... c5 {[%emt 0:09:40] CPLX 2.1} 14. e4 {[%emt 0:00:50] CPLX 2.5 13 (f2-f4) (=5)} Rfe8 {[%emt 0:06:15] CPLX 2.1} 15. h3 {[%emt 0:19:02] CPLX 2.1 17 (Qd1-e2) (=7)} Nd7 {[%emt 0:04:45] CPLX 2.1 12 (Bb7-c6) (=3)} 16. f4 {[%emt 0:06:35] MISS-Nc3-d5 4 (Nc3-d5) (=6)} Bc6 {[%emt 0:01:52] BESTDEEP} 17. Kh2 {[%emt 0:02:58] CPLX 2.2 6 (Qd1-e2) (=6)} Qb7 {[%emt 0:02:32] BESTDEEP} 18. Re1 {[%emt 0:07:10] CPLX 2.1 24 (Qd1-e2) (=8)} Nf8 {[%emt 0:05:18] BESTDEEP} 19. Nd5 {[%emt 0:06:06] CPLX 2.1} a5 {[%emt 0:08:40][%cal Ba7a5,Ba5a4][%mdl 32] BESTDEEP} 20. Bc3 {[%emt 0:03:13] CPLX 2.5 2 (Rc1-b1) (=7)} a4 {[%emt 0:03:05] BESTDEEP} 21. Bxg7 {[%emt 0:15:48] CPLX 3.2} Kxg7 {[%emt 0:00:10] RECAPT} 22. Qc2 {[%emt 0:11:47] CPLX 2.9 27 (Rc1-b1) (=8)} axb3 {[%emt 0:01:14] BESTDEEP} 23. Qc3+ {[%emt 0:00:54] CPLX 4.4 25 (Qc2-b2) (=9)} ({Much worse is} 23. Qxb3 Ne6 24. Ra1 Qxb3 25. axb3 Bxd5 26. exd5 Rxa1 27. Rxa1 Nd4 $17) 23... Kg8 {[%emt 0:09:29] [#] White must now prevent ...Bxd5. CPLX 3.4 26 (f7-f6) (=3)} 24. axb3 {[%emt 0:00:29] CPLX 3.8} Ra2 {[%emt 0:07:35] CPLX 3.4} 25. Kh1 {[%emt 0:06:51] CPLX 4.0 82 (Rc1-b1) (=13)} (25. Rb1 $15) 25... Bxd5 {[%emt 0:07:15] CPLX 4.2 53 (Nf8-e6) (=6)} (25... Ne6 $142 {...Rea8 is the strong threat.} 26. Ra1 Rxa1 27. Rxa1 Nd4) 26. cxd5 $17 {[%emt 0:01:29] RECAPT} Rb8 {[%emt 0:00:09] CPLX 3.3 9 (Re8-a8) (=6)} 27. Re3 {[%emt 0:03:11] CPLX 3.3 32 (Rc1-a1) (=13)} Qb4 {[%emt 0:00:46] CPLX 3.3 11 (Nf8-d7) (=6)} 28. e5 {[%emt 0:00:44] CPLX 3.5 18 (Bg2-f1) (=13)} Qxc3 {[%emt 0:03:52] BESTDEEP} 29. Rcxc3 {[%emt 0:00:12] RECAPT} Rb2 {[%emt 0:00:28] BESTDEEP} 30. g4 {[%emt 0:03:46] CPLX 2.3 26 (Kh1-g1) (=13)} Kg7 {[%emt 0:03:42] CPLX 2.3 12 (Nf8-d7) (=6)} 31. g5 {[%emt 0:01:39] CPLX 2.5 33 (Kh1-h2) (=14)} Rb4 {[%emt 0:00:48] BESTDEEP} 32. Rf3 {[%emt 0:01:28] BESTDEEP} Rd4 {[%emt 0:01:41] CPLX 2.8 52 (h7-h5) (=8)} (32... h5 $142 33. Kg1 Rd4) 33. exd6 {[%emt 0:01:47] CPLX 2.8 8 (Rc3-d3) (=13)} exd6 {[%emt 0:00:08] RECAPT} 34. Rcd3 {[%emt 0:01:40] CPLX 2.6} Rxd3 {[%emt 0:01:57] Black is more active. DEEPSTRONG} 35. Rxd3 {[%emt 0:00:07][%mdl 4096] Endgame KRB-KRN. RECAPT} Nd7 {[%emt 0:00:54] CPLX 2.2} 36. Re3 {[%emt 0:02:53] CPLX 2.1 57 (h3-h4) (=14)} (36. h4 $142) 36... Nb6 {[%emt 0:00:12] CPLX 2.2} 37. Rd3 {[%emt 0:00:30] BESTDEEP} Nc8 {[%emt 0:01:37] CPLX 2.2 14 (Nb6-a8) (=7)} 38. Re3 {[%emt 0:00:35] CPLX 2.1 11 (Kh1-g1) (=13)} Kf8 {[%emt 0:00:01] Against Re8+. BESTDEEP} 39. f5 {[%emt 0:00:31] Now White is beyond hope. CPLX 2.1 141 (Bg2-e4) (=17)} (39. Be4 $17 {was worth a try.}) 39... gxf5 $19 {[%emt 0:00:44] CPLX 2.3} 40. h4 {[%emt 0:00:30] CPLX 2.3 30 (Bg2-f1) (=18)} Ne7 {[%emt 0:00:32] CPLX 2.3} 41. h5 {[%emt 0:01:34] CPLX 2.4 30 (Bg2-h3) (=18)} Rd2 {[%emt 0:06:38] CPLX 2.5 43 (f5-f4) (=7)} 42. Re1 {[%emt 0:13:13] CPLX 2.6} Nxd5 {[%emt 0:00:33] CPLX 2.3} 43. h6 {[%emt 0:00:18] CPLX 2.3 62 (Bg2-h3) (=19)} Rd4 {[%emt 0:09:49] BESTDEEP} 44. Ra1 {[%emt 0:13:11] CPLX 2.2 50 (Bg2xd5) (=20)} Rh4+ {[%emt 0:00:40] CPLX 2.1} 45. Kg1 {[%emt 0:00:06] EASY} Rg4 {[%emt 0:00:14] CPLX 2.3} 46. Kf2 {[%emt 0:00:32] CPLX 2.5 0 (Kg1-h2) (=19)} Nf4 {[%emt 0:00:51] CPLX 2.5} 47. Bc6 {[%emt 0:04:24] [#] Ra8+ would kill now. CPLX 2.4 77 (Bg2-f1) (=20)} Nh3+ {[%emt 0:00:52] CPLX 2.3} 48. Ke3 {[%emt 0:00:39] White threatens Ra8+ and mate. CPLX 2.2 0 (Kf2-e2) (=20)} Nxg5 {[%emt 0:16:22] Weighted Error Value: White=0.21 (precise) /Black=0.07 (flawless)} 0-1

[Event "1st Serbian League 2022"]
[Site "Vrnjacka Banja"]
[Date "2022.09.20"]
[Round "1.21"]
[White "Gagunashvili, Merab"]
[Black "Vuckovic, Bojan"]
[Result "1/2-1/2"]
[ECO "A30"]
[WhiteElo "2552"]
[BlackElo "2559"]
[Annotator "TA"]
[PlyCount "42"]
[EventDate "2022.09.20"]
[EventType "team-tourn"]
[EventCountry "SRB"]
[SourceTitle "playchess.com"]
[Source "ChessBase"]
[SourceQuality "1"]
[TimeControl "40/5400+30:1800+30"]

{[%evp 26,42,36,39,52,40,43,26,65,2,7,2,4,0,0,0,31,4,25]} 1. c4 {[%emt 0:00:13]} Nf6 {[%emt 0:00:26]} 2. Nc3 {[%emt 0:00:20]} c5 {[%emt 0:00:20]} 3. Nf3 {[%emt 0:00:32]} e6 {[%emt 0:00:20]} 4. g3 {[%emt 0:00:36]} b6 {[%emt 0:01:06]} 5. Bg2 {[%emt 0:00:13]} Bb7 {[%emt 0:00:06]} 6. O-O {[%emt 0:00:16]} a6 {[%emt 0:02:35]} 7. Re1 {[%emt 0:01:03]} d6 {[%emt 0:02:54]} 8. e4 {[%emt 0:01:03]} Be7 {[%emt 0:00:48]} 9. d4 {[%emt 0:00:07]} cxd4 {[%emt 0:00:08]} 10. Nxd4 {[%emt 0:00:05]} Qc7 {[%emt 0:00:09]} 11. Be3 {[%emt 0:01:44]} Nbd7 {[%emt 0:08:04]} 12. f4 {[%emt 0:05:46]} O-O {[%emt 0:00:52]} 13. Rc1 {[%emt 0:00:34]} Rac8 {[%emt 0:04:16]} 14. g4 {[%emt 0:08:37]} Nc5 {[%emt 0:08:30] BESTDEEP. A30: Symmetrical English: Double Fianchetto and Hedgehog.} (14... Qxc4 $2 15. g5 $18) 15. Bf2 {[%emt 0:01:03] Black must now prevent g5. CPLX 2.6} g6 {[%emt 0:00:22] BESTDEEP} 16. f5 {[%emt 0:17:00] CPLX 2.5 17 (b2-b4) (=6)} (16. b4 $5 {[%cal Rb4c5]}) 16... e5 {[%emt 0:10:25] CPLX 3.1 39 (e6xf5) (=13). White has an edge.} 17. Nc2 {[%emt 0:01:44] RELBLUND 63 (Nd4-b3) (=20)} (17. Nb3 $14) 17... gxf5 $11 {[%emt 0:00:51] CPLX 2.9} 18. gxf5 {[%emt 0:01:50] RECAPT 5 (e4xf5) (=17)} Kh8 {[%emt 0:02:45] CPLX 2.9} 19. Kh1 {[%emt 0:22:53] CPLX 2.9 4 (Nc2-b4) (=15)} Rg8 {[%emt 0:03:59][%cal Og8g2] [#] Hoping for ...Rxg2! EASY} 20. Bf3 {[%emt 0:00:21] CPLX 3.4} Qd8 {[%emt 0:14:48][%cal Ob6b5] CPLX 3.1 31 (b6-b5) (=10)} (20... b5 $5 {[%cal Rb5c4]}) 21. Qe2 {[%emt 0:06:00] [#] CPLX 3.2 27 (b2-b4) (=15)} (21. b4 $5 {[%cal Rb4c5]} Ncd7 22. Ne3 $11) 21... b5 $146 {[%emt 0:17:15] Weighted Error Value: White=0.19 (very precise) /Black=0.12 (very precise)} ({Predecessor:} 21... Ncd7 22. Rg1 Qc7 23. Rxg8+ Rxg8 24. Rg1 Qd8 25. Ne3 Rxg1+ 26. Bxg1 Qg8 27. Qg2 Qxg2+ 28. Kxg2 {½-½ (55) Vedmediuc,S (2406)-Soltanici,R (2345) Kishinev 2015}) 1/2-1/2

[Event "1st Serbian League 2022"]
[Site "Vrnjacka Banja"]
[Date "2022.09.20"]
[Round "1.22"]
[White "Roganovic, Milos"]
[Black "Pap, Misa"]
[Result "0-1"]
[ECO "C78"]
[WhiteElo "2487"]
[BlackElo "2381"]
[Annotator "TA"]
[PlyCount "116"]
[EventDate "2022.09.20"]
[EventType "team-tourn"]
[EventCountry "SRB"]
[SourceTitle "playchess.com"]
[Source "ChessBase"]
[SourceQuality "1"]
[TimeControl "40/5400+30:1800+30"]

{[%evp 18,116,14,-5,10,0,1,0,0,0,0,0,2,25,18,0,0,-31,-31,-28,-21,-20,-4,-14,0,-6,-5,-8,-7,-8,0,0,0,0,0,-8,-10,-11,0,0,0,0,0,-189,-218,-220,-216,-191,-183,-227,-217,-402,-402,-438,-421,-573,-573,-564,-541,-544,-517,-744,-705,-804,-791,-803,-355,-382,-354,-442,-355,-687,-681,-970,-1006,-969,-936,-1757,-1737,-1768,-1736,-5118,-4738,-5187,-1968,-9319,-7731,-10651,-7063,-6099,-5193,-3801,-3472,-2622,-2065,-1682,-1556,-29958,-29950,-12848,-5065]} 1. e4 {[%emt 1:31:00]} e5 {[%emt 0:00:21]} 2. Nf3 {[%emt 0:00:00]} Nc6 {[%emt 0:00:07]} 3. Bb5 {[%emt 0:00:00]} a6 {[%emt 0:00:11]} 4. Ba4 {[%emt 0:00:00]} Nf6 {[%emt 0:01:12]} 5. O-O {[%emt 0:00:00]} Bc5 {[%emt 0:00:31]} 6. Nxe5 {[%emt 0:00:00]} Nxe5 {[%emt 0:00:20]} 7. d4 {[%emt 0:00:00]} b5 {[%emt 0:03:55]} 8. Bb3 {[%emt 0:00:00]} Bxd4 {[%emt 0:00:14]} 9. Qxd4 {[%emt 0:00:00]} d6 {[%emt 0:00:04]} 10. f4 {[%emt 0:00:00] CPLX 2.6 19 (a2-a3) (=19)} Nc6 {[%emt 0:00:05] MISS-c7-c5 15 (c7-c5) (=15). C78: Ruy Lopez: Archangelsk and Möller Defences.} 11. Qc3 {[%emt 0:00:00] EASY} Ne7 {[%emt 0:09:52] CPLX 3.5} 12. Qe1 {[%emt 0:00:00] [#] CPLX 2.5 1 (a2-a4) (=7)} c5 $146 {[%emt 0:13:37] Threatens to win with ...c4. CPLX 2.2 0 (0-0) (=5). The position is equal.} ({Predecessor:} 12... O-O 13. e5 Nfd5 14. f5 dxe5 15. Qxe5 c6 16. Nc3 f6 17. Qe4 Kh8 {½-½ (17) Iermito,S (2482)-Perez Ponsa,F (2576) Buenos Aires 2015}) 13. e5 {[%emt 0:00:00] CPLX 2.4 0 (c2-c3) (=5)} Ng4 {[%emt 0:02:06] Hoping for ...c4. CPLX 2.9} 14. c3 {[%emt 0:00:00] CPLX 3.0 0 (c2-c4) (=4)} h5 {[%emt 0:22:37] MISS-c5-c4 2 (c5-c4) (=3)} 15. Bc2 {[%emt 0:00:00] next h3 is good for White. BESTDEEP} Bf5 {[%emt 0:10:53] BESTDEEP} 16. exd6 {[%emt 0:00:00] CPLX 3.4 18 (Nb1-a3) (=5)} (16. Na3 {seems wilder.} c4 17. Be3 Bxc2 18. Nxc2 dxe5 19. fxe5 Qc7 20. Qg3) 16... Bxc2 {[%emt 0:00:12] EASY} 17. Qxe7+ {[%emt 0:00:00] CPLX 4.1 31 (d6xe7) (=9)} Qxe7 {[%emt 0:00:09] LEGAL} 18. dxe7 {[%emt 0:00:00] RECAPT} Kxe7 {[%emt 0:04:00] RECAPT} 19. h3 {[%emt 0:00:00] EASY} Nh6 {[%emt 0:03:46][%cal Bg4h6,Bh6f5,Bf5d6][%mdl 32] MISS-Ng4-f6 16 (Ng4-f6) (=3)} 20. Be3 {[%emt 0:00:00] CPLX 2.0 10 (Rf1-e1) (=7)} Kd6 {[%emt 0:00:54] CPLX 2.0 14 (c5-c4) (=4)} 21. Na3 {[%emt 0:00:00] CPLX 2.0 6 (a2-a4) (=7)} Be4 {[%emt 0:01:07] CPLX 2.0} 22. c4 {[%emt 0:00:02] CPLX 2.0 3 (Be3-f2) (=7)} b4 {[%emt 0:09:44] CPLX 2.2} 23. Nb1 $1 {[%emt 0:00:12] DEEPSTRONG} Nf5 {[%emt 0:00:15] CPLX 2.0 8 (Be4xb1) (=4)} 24. Bf2 {[%emt 0:03:08] BESTDEEP} Bxb1 {[%emt 0:06:51] CPLX 2.0 0 (Rh8-e8) (=4)} 25. Raxb1 {[%emt 0:00:14] RECAPT} Kc6 {[%emt 0:00:10] CPLX 2.0 0 (Ra8-d8) (=3)} 26. Rfe1 {[%emt 0:04:25] CPLX 2.0 8 (Rb1-e1) (=6)} Rhe8 {[%emt 0:00:11] CPLX 2.0} 27. Rbd1 {[%emt 0:01:38] CPLX 2.1} Nd6 {[%emt 0:01:09] CPLX 2.4 11 (Re8xe1) (=4)} 28. Rxe8 {[%emt 0:01:07] CPLX 2.5} Rxe8 $11 {[%emt 0:00:06][%mdl 4096] Endgame KRB-KRN. RECAPT} 29. Rd5 {[%emt 0:00:08] EASY} Ne4 {[%emt 0:03:34] CPLX 2.1 0 (Nd6-b7) (=3)} 30. Rxh5 $2 {[%emt 0:00:17] White is on the road to losing. RELBLUND 189 (Bf2-e3) (=14)} (30. Be3 $11 {and White stays safe.}) 30... Rd8 $1 $19 {[%emt 0:00:07] CPLX 2.0=>BLUNDERREACT} 31. Bh4 {[%emt 0:02:06] CPLX 2.0} Rd1+ {[%emt 0:02:53][%mdl 1024] Black has strong compensation. CPLX 2.0} 32. Kh2 {[%emt 0:00:03] [#] EASY} Rd2 $1 {[%emt 0:00:06] DEEPSTRONG} 33. Re5 {[%emt 0:01:01] EASY} Nd6 {[%emt 0:00:37] CPLX 2.1} 34. b3 {[%emt 0:00:33] CPLX 2.0 185 (Bh4-e7) (=19)} (34. Be7 {keeps fighting.}) 34... f6 {[%emt 0:01:15] CPLX 2.1=>BLUNDERREACT} 35. Re6 {[%emt 0:01:26] CPLX 2.3 36 (Re5-e7) (=19)} Kd7 {[%emt 0:00:51] CPLX 2.3} 36. Re1 {[%emt 0:00:01] CPLX 2.4 152 (Bh4-e1) (=24)} Nf5 {[%emt 0:01:32] CPLX 2.0} 37. Bg3 {[%emt 0:00:28] EASY} Rxa2 {[%emt 0:00:06] CPLX 2.1} 38. Rd1+ {[%emt 0:00:24] CPLX 2.0 3 (Re1-b1) (=23)} Kc6 {[%emt 0:00:20] CPLX 2.0 27 (Nf5-d4) (=3)} 39. Rd3 {[%emt 0:00:48] CPLX 2.0 227 (h3-h4) (=30)} a5 {[%emt 0:01:43] BESTDEEP} 40. h4 {[%emt 0:00:03] CPLX 2.0 99 (Bg3-e1) (=32)} Nd4 {[%emt 0:02:02] And now ...Ra3 would win. BESTDEEP} 41. h5 {[%emt 0:30:19] CPLX 2.0 12 (Bg3-e1) (=31)} Rb2 {[%emt 0:03:23] CPLX 2.0 400 (Ra2-a3) (=15)} (41... Ra3 $142 42. Be1 Rxb3 43. Rxb3 Nxb3) 42. Bh4 {[%emt 0:00:00] DEEPSTRONG=>BLUNDERREACT} Nf5 {[%emt 0:01:28] Prevents Rg3. BESTDEEP} (42... Rxb3 43. Rxb3 Nxb3 {[#]} 44. Bxf6 $1 $14) 43. Be1 {[%emt 0:00:00] CPLX 2.3 88 (Bh4-g3) (=32)} Re2 {[%emt 0:00:06] CPLX 2.1 87 (Rb2-c2) (=17)} ({Not} 43... Nd4 $2 44. Bh4 a4 45. bxa4 $19) 44. Bd2 {[%emt 0:00:00] CPLX 2.3 332 (Be1-g3) (=41)} (44. Bg3) 44... Nd4 {[%emt 0:02:02] CPLX 2.1=>BLUNDERREACT} 45. Bc1 {[%emt 0:00:00] CPLX 2.1 289 (Bd2xb4) (=47)} Rc2 {[%emt 0:00:48] CPLX 2.0=>BLUNDERREACT} 46. Be3 {[%emt 0:00:00] [#] EASY} Nxb3 $1 {[%emt 0:07:15][%mdl 512] ...a4 is the strong threat. DEEPSTRONG} 47. Rxb3 {[%emt 0:00:00] KRB-KR. CPLX 2.7 400 (Rd3-d8) (=55)} (47. Rd8 a4) 47... a4 {[%emt 0:00:01][%cal Ba5a4,Ba4a3][%mdl 32] EASY} 48. Rd3 {[%emt 0:00:00] CPLX 2.9 31 (Rb3-b1) (=55)} b3 {[%emt 0:00:41] aiming for ...b2. CPLX 2.7} 49. Rd8 {[%emt 0:00:00] CPLX 3.0 400 (h5-h6) (=63)} a3 {[%emt 0:02:22] EASY} 50. Rc8+ {[%emt 0:00:00] CPLX 3.2 400 (h5-h6) (=72)} Kd7 {[%emt 0:00:51] CPLX 3.1} 51. Rg8 {[%emt 0:00:00] RELBLUND 400 (Rc8-a8) (=80)} b2 {[%emt 0:00:39] DEEPSTRONG} 52. Rxg7+ {[%emt 0:00:00] EASY} Ke6 {[%emt 0:02:18] DEEPSTRONG} ({Stronger than} 52... Kc6 53. h6 b1=Q 54. h7 Rxg2+ 55. Kxg2 Qe4+ 56. Kf2 $15) 53. h6 {[%emt 0:00:00] DEEPSTRONG} b1=Q {[%emt 0:00:07] EASY} 54. h7 {[%emt 0:00:00] CPLX 4.9} Qb8 {[%emt 0:00:52] ( -> ...Qe8)} 55. Rg8 {[%emt 0:00:00] [#] Against Qe8} Rxg2+ $3 {[%emt 0:00:29]} 56. Rxg2 {[%emt 0:00:00]} Qh8 {[%emt 0:00:03]} 57. Bxc5 {[%emt 0:00:00]} Qxh7+ {[%emt 0:00:04]} 58. Kg3 {[%emt 0:00:00]} Qd3+ {[%emt 0:00:07] Weighted Error Value: White=0.87/Black=0.11 (very precise)} (58... Qg6+ $142 59. Kf2 Qc2+ 60. Kg3 Qxc4 61. Bxa3 Qc3+ 62. Kf2 Qxa3) 0-1

[Event "1st Serbian League 2022"]
[Site "Vrnjacka Banja"]
[Date "2022.09.20"]
[Round "1.23"]
[White "Savic, Miodrag R"]
[Black "Zajic, Milan"]
[Result "1/2-1/2"]
[ECO "B22"]
[WhiteElo "2406"]
[BlackElo "2402"]
[Annotator "ChessBase"]
[PlyCount "91"]
[EventDate "2022.09.20"]
[EventType "team-tourn"]
[EventCountry "SRB"]
[SourceTitle "playchess.com"]
[Source "ChessBase"]
[SourceQuality "1"]
[TimeControl "40/5400+30:1800+30"]

1. e4 {[%emt 0:00:08]} c5 {[%emt 0:00:06]} 2. c3 {[%emt 0:00:38]} d5 {[%emt 0:00:13]} 3. exd5 {[%emt 0:00:11]} Qxd5 {[%emt 0:00:06]} 4. Nf3 {[%emt 0:00:35]} Nf6 {[%emt 0:01:16]} 5. Na3 {[%emt 0:00:16]} Nc6 {[%emt 0:01:19]} 6. Be2 {[%emt 0:00:26]} e5 {[%emt 0:01:12]} 7. d3 {[%emt 0:00:20]} Be7 {[%emt 0:01:18]} 8. O-O {[%emt 0:00:31]} O-O {[%emt 0:00:25]} 9. Nc4 {[%emt 0:00:54]} Rd8 {[%emt 0:04:13]} 10. Re1 {[%emt 0:15:17]} h6 {[%emt 0:05:37]} 11. Qb3 {[%emt 0:08:15]} Rb8 {[%emt 0:35:06]} 12. Bf1 {[%emt 0:03:49]} Bd6 {[%emt 0:03:55]} 13. Nxd6 {[%emt 0:05:45]} Qxd6 {[%emt 0:01:02]} 14. Nd2 {[%emt 0:04:54]} b6 {[%emt 0:05:33]} 15. Ne4 {[%emt 0:03:25]} Qe7 {[%emt 0:01:14]} 16. Qa4 {[%emt 0:07:42]} Bd7 {[%emt 0:05:40]} 17. Qd1 {[%emt 0:00:18]} Be6 {[%emt 0:11:32]} 18. Qf3 {[%emt 0:00:26]} Nxe4 {[%emt 0:03:18]} 19. dxe4 {[%emt 0:00:51]} c4 {[%emt 0:06:21]} 20. Be3 {[%emt 0:05:10]} Rd7 {[%emt 0:01:27]} 21. Red1 {[%emt 0:02:30]} Rbd8 {[%emt 0:00:26]} 22. Be2 {[%emt 0:00:49]} Rxd1+ {[%emt 0:00:48]} 23. Rxd1 {[%emt 0:00:15]} Rxd1+ {[%emt 0:09:53]} 24. Bxd1 {[%emt 0:00:02]} Qd7 {[%emt 0:00:00]} 25. Qe2 {[%emt 0:02:41]} b5 {[%emt 0:00:00]} 26. Qd2 {[%emt 0:07:43]} Qxd2 {[%emt 0:00:00]} 27. Bxd2 {[%emt 0:00:02]} g5 {[%emt 0:00:29]} 28. h4 {[%emt 0:01:36]} f6 {[%emt 0:00:19]} 29. Bh5 {[%emt 0:00:10]} Bd7 {[%emt 0:01:25]} 30. Be3 {[%emt 0:00:59]} a6 {[%emt 0:00:15]} 31. hxg5 {[%emt 0:17:07]} hxg5 {[%emt 0:00:02]} 32. Bb6 {[%emt 0:00:24]} Kg7 {[%emt 0:00:48]} 33. f3 {[%emt 0:02:15]} Ne7 {[%emt 0:00:45]} 34. g3 {[%emt 0:00:29]} Ng6 {[%emt 0:00:43]} 35. Bd8 {[%emt 0:01:17]} Kh6 {[%emt 0:00:34]} 36. Bxg6 {[%emt 0:03:51]} Kxg6 {[%emt 0:00:01]} 37. g4 {[%emt 0:00:29]} Be6 {[%emt 0:01:00]} 38. Kf2 {[%emt 0:00:02]} Kf7 {[%emt 0:00:26]} 39. Ke3 {[%emt 0:00:06]} Bd7 {[%emt 0:00:35]} 40. Kd2 {[%emt 0:00:08]} Ke6 {[%emt 0:00:30]} 41. Kc2 {[%emt 0:30:08]} Kf7 {[%emt 0:11:49]} 42. b3 {[%emt 0:00:00]} Be6 {[%emt 0:02:19]} 43. Kb2 {[%emt 0:00:00]} Kg6 {[%emt 0:01:01]} 44. Ka3 {[%emt 0:00:00]} Kg7 {[%emt 0:00:57]} 45. Kb4 {[%emt 0:00:00]} Kf7 {[%emt 0:00:43]} 46. Ka3 {[%emt 0:00:00]} 1/2-1/2

[Event "1st Serbian League 2022"]
[Site "Vrnjacka Banja"]
[Date "2022.09.20"]
[Round "1.24"]
[White "Stankovic, Milos"]
[Black "Radovanovic, Mihajlo"]
[Result "0-1"]
[ECO "C41"]
[WhiteElo "2439"]
[BlackElo "2438"]
[Annotator "ChessBase"]
[PlyCount "70"]
[EventDate "2022.09.20"]
[EventType "team-tourn"]
[EventCountry "SRB"]
[SourceTitle "playchess.com"]
[Source "ChessBase"]
[SourceQuality "1"]
[TimeControl "40/5400+30:1800+30"]

1. e4 {[%emt 0:01:11]} e5 {[%emt 0:00:27]} 2. Nf3 {[%emt 0:00:30]} d6 {[%emt 0:00:09]} 3. d4 {[%emt 0:00:53]} exd4 {[%emt 0:00:06]} 4. Nxd4 {[%emt 0:01:08]} Nf6 {[%emt 0:00:06]} 5. Nc3 {[%emt 0:00:32]} Be7 {[%emt 0:00:08]} 6. Qf3 {[%emt 0:06:38]} O-O {[%emt 0:01:12]} 7. Nf5 {[%emt 0:00:39]} Bxf5 {[%emt 0:00:09]} 8. Qxf5 {[%emt 0:00:18]} Re8 {[%emt 0:00:37]} 9. Be3 {[%emt 0:03:40]} g6 {[%emt 0:03:15]} 10. Qh3 {[%emt 0:06:27]} Nbd7 {[%emt 0:07:08]} 11. O-O-O {[%emt 0:04:14]} c6 {[%emt 0:01:56]} 12. g4 {[%emt 0:03:54]} Bf8 {[%emt 0:04:11]} 13. f3 {[%emt 0:05:43]} d5 {[%emt 0:36:00]} 14. Bd4 {[%emt 0:08:23]} Bb4 {[%emt 0:22:18]} 15. a3 {[%emt 0:07:50]} Ba5 {[%emt 0:00:20]} 16. Kb1 {[%emt 0:02:36]} b5 {[%emt 0:08:43]} 17. exd5 {[%emt 0:08:10]} c5 {[%emt 0:00:48]} 18. Bxf6 {[%emt 0:01:00]} Nxf6 {[%emt 0:00:13]} 19. Ne4 {[%emt 0:02:10]} c4 {[%emt 0:00:48]} 20. Bg2 {[%emt 0:06:13]} b4 {[%emt 0:06:21]} 21. axb4 {[%emt 0:07:04]} Bxb4 {[%emt 0:00:01]} 22. c3 {[%emt 0:00:08]} Nxe4 {[%emt 0:01:21]} 23. fxe4 {[%emt 0:00:07]} Ba3 24. bxa3 {[%emt 0:09:16]} Rb8+ {[%emt 0:00:06]} 25. Ka2 {[%emt 0:00:58]} Rb3 {[%emt 0:00:32]} 26. Qg3 {[%emt 0:04:13]} Qb6 {[%emt 0:00:41]} 27. Rb1 {[%emt 0:02:36]} Re7 {[%emt 0:00:37]} 28. Qf4 {[%emt 0:04:17]} Rxa3+ {[%emt 0:01:11]} 29. Kxa3 {[%emt 0:00:08]} Qa5+ {[%emt 0:00:05]} 30. Kb2 {[%emt 0:00:01]} Rb7+ {[%emt 0:00:08]} 31. Kc1 {[%emt 0:00:50]} Qxc3+ {[%emt 0:00:06]} 32. Kd1 {[%emt 0:00:06]} Qd3+ {[%emt 0:00:36]} 33. Ke1 {[%emt 0:00:11]} Rxb1+ {[%emt 0:00:05]} 34. Kf2 {[%emt 0:00:07]} Rb2+ {[%emt 0:00:04]} 35. Kg1 {[%emt 0:00:11]} Qd4+ {[%emt 0:00:05]} 0-1